Workbook

Sheet Д(Y) (2)
A1: Программа (@Солошенков АД) подбора параметров ФУНКЦИИ ПРОДУКТИВНОСТИ (@Шабанов ВВ), в зависимости от нормированного фактора внешней среды . | AA1: Для графиков
AA2: =((AH11/$C$9)^($C$10*$C$9))*((((1-AH11)/(1-$C$9))^($C$10*(1-$C$9)))) -> 0 | AC2: Fi | AD2: =AP8 -> 0.5501
X3: Si | Y3: =C8 -> 0.8 | Z3: 0 | AA3: 9.632312578e-41 | AC3: Si | AD3: =F19 -> 0.8
Y4: =Y3 -> 0.8 | Z4: 1 | AA4: 7.133816931e-33
X5: F' | Y5: =ROUND(AD2,3) -> 0.55 | Z5: 0 | AA5: 2.652984974e-28 | AC5: Fii | AD5: =AQ8 -> 0.6485 | AF5: Идентификация 1 уровня (0,1) | AJ5: Идентификация 2 уровня (0,01) | AN5: Идентификация 3 уровня (0,001)
Y6: =ROUND(Y5,3) -> 0.55 | Z6: =AD3 -> 0.8 | AA6: 4.394491361e-25 | AC6: Si | AD6: =F20 -> 0.8 | AG6: поиск Fi' (2) | AH6: п Fопт (1) | AI6: поиск Fi'' (2) | AL6: поиск Fi' (3) | AM6: поиск Fi'' (3) | AN6: поиск Fi' (3) | AO6: поиск Fi'' (3)
B7: Задайте значения: | X7: F'' | Y7: =ROUND(AD5,3) -> 0.649 | Z7: 0 | AA7: 1.322192563e-22 | AF7: Индекс | AG7: =MATCH(ROUND(C8,1),AG11:AG111,0) -> 56 | AH7: =MATCH(1,AG11:AG111,0) -> 59 | AI7: =IFERROR(MATCH(ROUND(C8,1),AI11:AI111,0),MATCH(ROUND(C8,1),AI11:AI111,-1)) -> 7 | AJ7: =IFERROR(MATCH(C8,AJ11:AJ71,0),MATCH(C8,AJ11:AJ71,1)) -> 11 | AK7: =IFERROR(MATCH(C8,AK11:AK71,0),MATCH(C8,AK11:AK71,-1)) -> 9 | AN7: =IFERROR(MATCH(C8,AN11:AN71,0),MATCH(C8,AN11:AN71,1)) -> 12 | AO7: =IFERROR(MATCH(C8,AO11:AO71,0),MATCH(C8,AO11:AO71,-1)) -> 16
B8: Si | C8: 0.8 | Y8: =ROUND(Y7,3) -> 0.649 | Z8: =AD6 -> 0.8 | AA8: 1.351432553e-20 | AF8: Значение | AG8: =INDEX(AH11:AH111,AG7,1) -> 0.55 | AI8: =INDEX(AH11:AH111,AH7+AI7,1) -> 0.65 | AL8: =INDEX(AL11:AL71,AJ7,1) -> 0.55 | AM8: =INDEX(AM11:AM71,AK7,1) -> 0.648 | AP8: =INDEX(AP11:AP71,AN7,1) -> 0.5501 | AQ8: =INDEX(AQ11:AQ71,AO7,1) -> 0.6485
B9: Fопт | C9: 0.6 | X9: Fопт | Y9: =C9 -> 0.6 | Z9: 0 | AA9: 6.552986804e-19
B10: g | C10: 44 | Y10: =Y9 -> 0.6 | Z10: 1 | AA10: 1.839892971e-17 | AG10: S | AH10: Fi все | AI10: Fi после Fi' | AJ10: S' | AK10: S'' | AL10: F' | AM10: F'' | AN10: S' | AO10: S'' | AP10: F' | AQ10: F''
Z11: =ROUND(C8,1) -> 0.8 | AA11: 3.401589455e-16 | AF11: 1 | AG11: =ROUND(((AH11/$C$9)^($C$10*$C$9))*((((1-AH11)/(1-$C$9))^($C$10*(1-$C$9)))),1) -> 0 | AH11: 0 | AI11: =OFFSET(AG11:AG111,$AH$7,0,100-$AH$7,1) -> 1 | AJ11: =ROUND(((AL11/$C$9)^($C$10*$C$9))*((((1-AL11)/(1-$C$9))^($C$10*(1-$C$9)))),2) -> 0.72 | AK11: =ROUND(((AM11/$C$9)^($C$10*$C$9))*((((1-AM11)/(1-$C$9))^($C$10*(1-$C$9)))),2) -> 0.86 | AL11: =INDEX($AH$11:$AH$111,$AG$7,1)-0.01 -> 0.54 | AM11: =INDEX($AH$11:$AH$111,$AH$7+$AI$7,1)-0.01 -> 0.64 | AN11: =ROUND(((AP11/$C$9)^($C$10*$C$9))*((((1-AP11)/(1-$C$9))^($C$10*(1-$C$9)))),3) -> 0.792 | AO11: =ROUND(((AQ11/$C$9)^($C$10*$C$9))*((((1-AQ11)/(1-$C$9))^($C$10*(1-$C$9)))),3) -> 0.811 | AP11: =INDEX($AL$11:$AL$111,$AJ$7,1)-0.001 -> 0.549 | AQ11: =INDEX($AM$11:$AM$111,$AK$7,1)-0.001 -> 0.647
AA12: 4.520841788e-15 | AF12: 2 | AG12: =ROUND(((AH12/$C$9)^($C$10*$C$9))*((((1-AH12)/(1-$C$9))^($C$10*(1-$C$9)))),1) -> 0 | AH12: 0.01 | AI12: 1 | AJ12: =ROUND(((AL12/$C$9)^($C$10*$C$9))*((((1-AL12)/(1-$C$9))^($C$10*(1-$C$9)))),2) -> 0.73 | AK12: =ROUND(((AM12/$C$9)^($C$10*$C$9))*((((1-AM12)/(1-$C$9))^($C$10*(1-$C$9)))),2) -> 0.85 | AL12: =AL11+0.001 -> 0.541 | AM12: =AM11+0.001 -> 0.641 | AN12: =ROUND(((AP12/$C$9)^($C$10*$C$9))*((((1-AP12)/(1-$C$9))^($C$10*(1-$C$9)))),3) -> 0.793 | AO12: =ROUND(((AQ12/$C$9)^($C$10*$C$9))*((((1-AQ12)/(1-$C$9))^($C$10*(1-$C$9)))),3) -> 0.811 | AP12: =AP11+0.0001 -> 0.5491 | AQ12: =AQ11+0.0001 -> 0.6471
B13: Результат расчета: | AA13: 4.59813955e-14 | AF13: 3 | AG13: =ROUND(((AH13/$C$9)^($C$10*$C$9))*((((1-AH13)/(1-$C$9))^($C$10*(1-$C$9)))),1) -> 0 | AH13: 0.02 | AI13: 1 | AJ13: 0.74 | AK13: 0.85 | AL13: =AL12+0.001 -> 0.542 | AM13: =AM12+0.001 -> 0.642 | AN13: 0.794 | AO13: 0.81 | AP13: =AP12+0.0001 -> 0.5492 | AQ13: =AQ12+0.0001 -> 0.6472
B14: Fi' | C14: 0.55 | AA14: 3.748271735e-13 | AF14: 4 | AG14: 0 | AH14: 0.03 | AI14: 1 | AJ14: 0.75 | AK14: 0.84 | AL14: 0.543 | AM14: 0.643 | AN14: 0.794 | AO14: 0.809 | AP14: 0.5493 | AQ14: 0.6473
B15: Fi'' | C15: 0.65 | AA15: 2.536264188e-12 | AF15: 5 | AG15: 0 | AH15: 0.04 | AI15: 0.9 | AJ15: 0.76 | AK15: 0.83 | AL15: 0.544 | AM15: 0.644 | AN15: 0.795 | AO15: 0.808 | AP15: 0.5494 | AQ15: 0.6474
AA16: 1.463875109e-11 | AF16: 6 | AG16: 0 | AH16: 0.05 | AI16: 0.9 | AJ16: 0.76 | AK16: 0.83 | AL16: 0.545 | AM16: 0.645 | AN16: 0.796 | AO16: 0.808 | AP16: 0.5495 | AQ16: 0.6475
AA17: 7.364333949e-11 | AF17: 7 | AG17: 0 | AH17: 0.06 | AI17: 0.8 | AJ17: 0.77 | AK17: 0.82 | AL17: 0.546 | AM17: 0.646 | AN17: 0.796 | AO17: 0.807 | AP17: 0.5496 | AQ17: 0.6476
B18: Проверка точности: | H18: Огругл. значения: | AA18: 3.285746994e-10 | AF18: 8 | AG18: 0 | AH18: 0.07 | AI18: 0.7 | AJ18: 0.78 | AK18: 0.81 | AL18: 0.547 | AM18: 0.647 | AN18: 0.797 | AO18: 0.806 | AP18: 0.5497 | AQ18: 0.6477
B19: при Fi'= | C19: =C14 -> 0.55 | E19: Si= | F19: 0.8 | H19: =ROUND(F19,2) -> 0.8 | AA19: 1.318794395e-09 | AF19: 9 | AG19: 0 | AH19: 0.08 | AI19: 0.6 | AJ19: 0.78 | AK19: 0.8 | AL19: 0.548 | AM19: 0.648 | AN19: 0.798 | AO19: 0.806 | AP19: 0.5498 | AQ19: 0.6478
B20: при Fi''= | C20: =C15 -> 0.65 | E20: Si= | F20: 0.8 | H20: =ROUND(F20,2) -> 0.8 | AA20: 4.818025333e-09 | AF20: 10 | AG20: 0 | AH20: 0.09 | AI20: 0.5 | AJ20: 0.79 | AK20: 0.8 | AL20: 0.549 | AM20: 0.649 | AN20: 0.799 | AO20: 0.805 | AP20: 0.5499 | AQ20: 0.6479
AA21: 1.618014987e-08 | AF21: 11 | AG21: 0 | AH21: 0.1 | AI21: 0.5 | AJ21: 0.8 | AK21: 0.79 | AL21: 0.55 | AM21: 0.65 | AN21: 0.799 | AO21: 0.804 | AP21: 0.55 | AQ21: 0.648
A22: ссылка : https://www.timacad.ru/about/struktura-universiteta/nauchnye-podrazdeleniia/problemnaia-laboratoriia/razrabotki-laboratorii | AA22: 5.036476352e-08 | AF22: 12 | AG22: 0 | AH22: 0.11 | AI22: 0.4 | AJ22: 0.81 | AK22: 0.78 | AL22: 0.551 | AM22: 0.651 | AN22: 0.8 | AO22: 0.803 | AP22: 0.5501 | AQ22: 0.6481
AA23: 1.463448117e-07 | AF23: 13 | AG23: 0 | AH23: 0.12 | AI23: 0.3 | AJ23: 0.81 | AK23: 0.77 | AL23: 0.552 | AM23: 0.652 | AN23: 0.801 | AO23: 0.803 | AP23: 0.5502 | AQ23: 0.6482
AA24: 3.993695267e-07 | AF24: 14 | AG24: 0 | AH24: 0.13 | AI24: 0.2 | AJ24: 0.82 | AK24: 0.77 | AL24: 0.553 | AM24: 0.653 | AN24: 0.801 | AO24: 0.802 | AP24: 0.5503 | AQ24: 0.6483
AA25: 1.02897015e-06 | AF25: 15 | AG25: 0 | AH25: 0.14 | AI25: 0.2 | AJ25: 0.83 | AK25: 0.76 | AL25: 0.554 | AM25: 0.654 | AN25: 0.802 | AO25: 0.801 | AP25: 0.5504 | AQ25: 0.6484
AA26: 2.514473991e-06 | AF26: 16 | AG26: 0 | AH26: 0.15 | AI26: 0.1 | AJ26: 0.83 | AK26: 0.75 | AL26: 0.555 | AM26: 0.655 | AN26: 0.803 | AO26: 0.8 | AP26: 0.5505 | AQ26: 0.6485
AA27: 5.851208948e-06 | AF27: 17 | AG27: 0 | AH27: 0.16 | AI27: 0.1 | AJ27: 0.84 | AK27: 0.74 | AL27: 0.556 | AM27: 0.656 | AN27: 0.803 | AO27: 0.8 | AP27: 0.5506 | AQ27: 0.6486
AA28: 1.301145297e-05 | AF28: 18 | AG28: 0 | AH28: 0.17 | AI28: 0.1 | AJ28: 0.85 | AK28: 0.73 | AL28: 0.557 | AM28: 0.657 | AN28: 0.804 | AO28: 0.799 | AP28: 0.5507 | AQ28: 0.6487
AA29: 2.77355546e-05 | AF29: 19 | AG29: 0 | AH29: 0.18 | AI29: 0 | AJ29: 0.85 | AK29: 0.73 | AL29: 0.558 | AM29: 0.658 | AN29: 0.805 | AO29: 0.798 | AP29: 0.5508 | AQ29: 0.6488
AA30: 5.682966646e-05 | AF30: 20 | AG30: 0 | AH30: 0.19 | AI30: 0 | AJ30: 0.86 | AK30: 0.72 | AL30: 0.559 | AM30: 0.659 | AN30: 0.806 | AO30: 0.797 | AP30: 0.5509 | AQ30: 0.6489
AA31: 0.0001122031952 | AF31: 21 | AG31: 0 | AH31: 0.2 | AI31: 0 | AJ31: 0.87 | AK31: 0.71 | AL31: 0.56 | AM31: 0.66 | AN31: 0.806 | AO31: 0.797 | AP31: 0.551 | AQ31: 0.649
AA32: 0.0002139329951 | AF32: 22 | AG32: 0 | AH32: 0.21 | AI32: 0 | AJ32: 0.87 | AK32: 0.7 | AL32: 0.561 | AM32: 0.661 | AN32: 0.807 | AO32: 0.796 | AP32: 0.5511 | AQ32: 0.6491
AA33: 0.0003946788524 | AF33: 23 | AG33: 0 | AH33: 0.22 | AI33: 0 | AJ33: 0.88 | AK33: 0.69 | AL33: 0.562 | AM33: 0.662 | AN33: 0.808 | AO33: 0.795 | AP33: 0.5512 | AQ33: 0.6492
AA34: =((AH43/$C$9)^($C$10*$C$9))*((((1-AH43)/(1-$C$9))^($C$10*(1-$C$9)))) -> 0.0007057768901 | AF34: 24 | AG34: 0 | AH34: 0.23 | AI34: 0 | AJ34: 0.88 | AK34: 0.68 | AL34: 0.563 | AM34: 0.663 | AN34: 0.808 | AO34: 0.794 | AP34: 0.5513 | AQ34: 0.6493
AA35: 0.001225280954 | AF35: 25 | AG35: 0 | AH35: 0.24 | AI35: 0 | AJ35: 0.89 | AK35: 0.68 | AL35: 0.564 | AM35: 0.664 | AN35: 0.809 | AO35: 0.794 | AP35: 0.5514 | AQ35: 0.6494
AA36: 0.002068082301 | AF36: 26 | AG36: 0 | AH36: 0.25 | AI36: 0 | AJ36: 0.9 | AK36: 0.67 | AL36: 0.565 | AM36: 0.665 | AN36: 0.81 | AO36: 0.793 | AP36: 0.5515 | AQ36: 0.6495
AA37: 0.003397993864 | AF37: 27 | AG37: 0 | AH37: 0.26 | AI37: 0 | AJ37: 0.9 | AK37: 0.66 | AL37: 0.566 | AM37: 0.666 | AN37: 0.81 | AO37: 0.792 | AP37: 0.5516 | AQ37: 0.6496
AA38: 0.005441325484 | AF38: 28 | AG38: 0 | AH38: 0.27 | AI38: 0 | AJ38: 0.91 | AK38: 0.65 | AL38: 0.567 | AM38: 0.667 | AN38: 0.811 | AO38: 0.791 | AP38: 0.5517 | AQ38: 0.6497
AA39: 0.008501006109 | AF39: 29 | AG39: 0 | AH39: 0.28 | AI39: 0 | AJ39: 0.91 | AK39: 0.64 | AL39: 0.568 | AM39: 0.668 | AN39: 0.812 | AO39: 0.79 | AP39: 0.5518 | AQ39: 0.6498
AA40: 0.01296975667 | AF40: 30 | AG40: 0 | AH40: 0.29 | AI40: 0 | AJ40: 0.92 | AK40: 0.63 | AL40: 0.569 | AM40: 0.669 | AN40: 0.813 | AO40: 0.79 | AP40: 0.5519 | AQ40: 0.6499
AA41: 0.01934024023 | AF41: 31 | AG41: 0 | AH41: 0.3 | AI41: 0 | AJ41: 0.92 | AK41: 0.62 | AL41: 0.57 | AM41: 0.67 | AN41: 0.813 | AO41: 0.789 | AP41: 0.552 | AQ41: 0.65
AA42: 0.02820959949 | AF42: 32 | AG42: 0 | AH42: 0.31 | AI42: 0 | AJ42: 0.93 | AK42: 0.61 | AL42: =AL41+0.001 -> 0.571 | AM42: 0.671 | AN42: 0.814 | AO42: 0.788 | AP42: 0.5521 | AQ42: 0.6501
AA43: 0.0402754466 | AF43: 33 | AG43: 0 | AH43: 0.32 | AI43: 0 | AJ43: 0.93 | AK43: 0.61 | AL43: =AL42+0.001 -> 0.572 | AM43: 0.672 | AN43: 0.815 | AO43: 0.787 | AP43: 0.5522 | AQ43: 0.6502
AA44: 0.05632031767 | AF44: 34 | AG44: 0 | AH44: 0.33 | AI44: 0 | AJ44: 0.94 | AK44: 0.6 | AL44: =AL43+0.001 -> 0.573 | AM44: 0.673 | AN44: 0.815 | AO44: 0.787 | AP44: 0.5523 | AQ44: 0.6503
AA45: 0.07718196472 | AF45: 35 | AG45: 0 | AH45: 0.34 | AI45: 0 | AJ45: 0.94 | AK45: 0.59 | AL45: 0.574 | AM45: 0.674 | AN45: 0.816 | AO45: 0.786 | AP45: 0.5524 | AQ45: =AQ44+0.0001 -> 0.6504
AA46: 0.1037077178 | AF46: 36 | AG46: 0 | AH46: 0.35 | AI46: 0 | AJ46: 0.94 | AK46: 0.58 | AL46: 0.575 | AM46: 0.675 | AN46: 0.817 | AO46: 0.785 | AP46: 0.5525 | AQ46: 0.6505
AA47: 0.1366925487 | AF47: 37 | AG47: 0 | AH47: 0.36 | AI47: 0 | AJ47: 0.95 | AK47: 0.57 | AL47: 0.576 | AM47: 0.676 | AN47: 0.817 | AO47: 0.784 | AP47: 0.5526 | AQ47: 0.6506
AA48: 0.1768023657 | AF48: 38 | AG48: 0 | AH48: 0.37 | AI48: 0 | AJ48: 0.95 | AK48: 0.56 | AL48: =AL47+0.001 -> 0.577 | AM48: 0.677 | AN48: 0.818 | AO48: 0.784 | AP48: 0.5527 | AQ48: 0.6507
AA49: 0.2244863285 | AF49: 39 | AG49: 0 | AH49: 0.38 | AI49: 0 | AJ49: 0.96 | AK49: 0.55 | AL49: =AL48+0.001 -> 0.578 | AM49: 0.678 | AN49: 0.819 | AO49: 0.783 | AP49: 0.5528 | AQ49: 0.6508
AA50: 0.2798843771 | AF50: 40 | AG50: 0 | AH50: 0.39 | AI50: 0 | AJ50: 0.96 | AK50: 0.55 | AL50: =AL49+0.001 -> 0.579 | AM50: 0.679 | AN50: 0.819 | AO50: 0.782 | AP50: 0.5529 | AQ50: 0.6509
AA51: 0.3427383918 | AF51: 41 | AG51: 0 | AH51: 0.4 | AI51: 0 | AJ51: 0.96 | AK51: 0.54 | AL51: =AL50+0.001 -> 0.58 | AM51: 0.68 | AN51: 0.82 | AO51: 0.781 | AP51: 0.553 | AQ51: 0.651
AA52: 0.4123170873 | AF52: 42 | AG52: 0 | AH52: 0.41 | AJ52: =ROUND(((AL52/$C$9)^($C$10*$C$9))*((((1-AL52)/(1-$C$9))^($C$10*(1-$C$9)))),2) -> 0.97 | AK52: =ROUND(((AM52/$C$9)^($C$10*$C$9))*((((1-AM52)/(1-$C$9))^($C$10*(1-$C$9)))),2) -> 0.53 | AL52: =AL51+0.001 -> 0.581 | AM52: 0.681 | AN52: 0.821 | AO52: 0.781 | AP52: 0.5531 | AQ52: 0.6511
AA53: 0.4873655193 | AF53: 43 | AG53: 0.1 | AH53: 0.42 | AJ53: 0.97 | AK53: 0.52 | AL53: 0.582 | AM53: 0.682 | AN53: 0.822 | AO53: 0.78 | AP53: 0.5532 | AQ53: 0.6512
AA54: 0.5660896209 | AF54: 44 | AG54: 0.1 | AH54: 0.43 | AJ54: 0.97 | AK54: 0.51 | AL54: 0.583 | AM54: 0.683 | AN54: 0.822 | AO54: 0.779 | AP54: 0.5533 | AQ54: 0.6513
AA55: 0.6461842965 | AF55: 45 | AG55: 0.1 | AH55: 0.44 | AJ55: 0.98 | AK55: 0.5 | AL55: 0.584 | AM55: 0.684 | AN55: 0.823 | AO55: 0.778 | AP55: 0.5534 | AQ55: 0.6514
AA56: 0.7249102481 | AF56: 46 | AG56: 0.1 | AH56: 0.45 | AJ56: 0.98 | AK56: 0.49 | AL56: 0.585 | AM56: 0.685 | AN56: 0.824 | AO56: 0.777 | AP56: 0.5535 | AQ56: 0.6515
AA57: 0.7992200815 | AF57: 47 | AG57: 0.2 | AH57: 0.46 | AJ57: 0.98 | AK57: 0.48 | AL57: 0.586 | AM57: 0.686 | AN57: 0.824 | AO57: 0.777 | AP57: 0.5536 | AQ57: 0.6516
AA58: 0.8659287551 | AF58: 48 | AG58: 0.2 | AH58: 0.47 | AJ58: 0.98 | AK58: 0.48 | AL58: 0.587 | AM58: 0.687 | AN58: 0.825 | AO58: 0.776 | AP58: 0.5537 | AQ58: 0.6517
AA59: 0.9219176943 | AF59: 49 | AG59: 0.3 | AH59: 0.48 | AJ59: 0.99 | AK59: 0.47 | AL59: 0.588 | AM59: 0.688 | AN59: 0.826 | AO59: 0.775 | AP59: 0.5538 | AQ59: 0.6518
AA60: 0.9643566587 | AF60: 50 | AG60: 0.3 | AH60: 0.49 | AJ60: 0.99 | AK60: 0.46 | AL60: 0.589 | AM60: 0.689 | AN60: 0.826 | AO60: 0.774 | AP60: 0.5539 | AQ60: 0.6519
AA61: 0.9909235004 | AF61: 51 | AG61: 0.4 | AH61: 0.5 | AJ61: 0.99 | AK61: 0.45 | AL61: 0.59 | AM61: 0.69 | AN61: 0.827 | AO61: 0.774 | AP61: 0.554 | AQ61: 0.652
AA62: 1 | AF62: 52 | AG62: 0.5 | AH62: 0.51 | AJ62: 0.99 | AK62: 0.44 | AL62: 0.591 | AM62: 0.691 | AN62: 0.828 | AO62: 0.773 | AP62: =AP61+0.0001 -> 0.5541 | AQ62: =AQ61+0.0001 -> 0.6521
AA63: 0.9908225235 | AF63: 53 | AG63: 0.6 | AH63: 0.52 | AJ63: 0.99 | AK63: 0.43 | AL63: 0.592 | AM63: 0.692 | AN63: 0.828 | AO63: 0.772 | AP63: 0.5542 | AQ63: 0.6522
AA64: 0.9635695021 | AF64: 54 | AG64: 0.6 | AH64: 0.53 | AJ64: 1 | AK64: 0.43 | AL64: 0.593 | AM64: 0.693 | AN64: 0.829 | AO64: 0.771 | AP64: 0.5543 | AQ64: 0.6523
AA65: 0.9193735215 | AF65: 55 | AG65: 0.7 | AH65: 0.54 | AJ65: 1 | AK65: 0.42 | AL65: 0.594 | AM65: 0.694 | AN65: 0.83 | AO65: 0.77 | AP65: 0.5544 | AQ65: 0.6524
AA66: =((AH75/$C$9)^($C$10*$C$9))*((((1-AH75)/(1-$C$9))^($C$10*(1-$C$9)))) -> 0.8602535414 | AF66: 56 | AG66: 0.8 | AH66: 0.55 | AJ66: 1 | AK66: 0.41 | AL66: 0.595 | AM66: 0.695 | AN66: 0.83 | AO66: 0.77 | AP66: 0.5545 | AQ66: 0.6525
AA67: 0.7889715417 | AF67: 57 | AG67: 0.9 | AH67: 0.56 | AJ67: 1 | AK67: 0.4 | AL67: 0.596 | AM67: 0.696 | AN67: 0.831 | AO67: 0.769 | AP67: 0.5546 | AQ67: 0.6526
AA68: 0.7088265574 | AF68: 58 | AG68: 0.9 | AH68: 0.57 | AJ68: 1 | AK68: 0.39 | AL68: 0.597 | AM68: 0.697 | AN68: 0.832 | AO68: 0.768 | AP68: 0.5547 | AQ68: 0.6527
AA69: 0.6234064275 | AF69: 59 | AG69: 1 | AH69: 0.58 | AJ69: 1 | AK69: 0.39 | AL69: 0.598 | AM69: 0.698 | AN69: 0.832 | AO69: 0.767 | AP69: 0.5548 | AQ69: 0.6528
AA70: 0.5363225486 | AF70: 60 | AG70: 1 | AH70: 0.59 | AJ70: 1 | AK70: 0.38 | AL70: 0.599 | AM70: 0.699 | AN70: 0.833 | AO70: 0.766 | AP70: 0.5549 | AQ70: 0.6529
AA71: 0.450954733 | AF71: 61 | AG71: 1 | AH71: 0.6 | AJ71: 1 | AK71: 0.37 | AL71: 0.6 | AM71: 0.7 | AN71: 0.834 | AO71: 0.766 | AP71: 0.555 | AQ71: 0.653
AA72: 0.3702315983 | AF72: 62 | AG72: 1 | AH72: 0.61
AA73: 0.2964669679 | AF73: 63 | AG73: 1 | AH73: 0.62
AA74: 0.2312652604 | AF74: 64 | AG74: 0.9 | AH74: 0.63
AA75: 0.1754999103 | AF75: 65 | AG75: 0.9 | AH75: 0.64
AA76: 0.1293598394 | AF76: 66 | AG76: =ROUND(((AH76/$C$9)^($C$10*$C$9))*((((1-AH76)/(1-$C$9))^($C$10*(1-$C$9)))),1) -> 0.8 | AH76: 0.65
AA77: 0.09245122045 | AF77: 67 | AG77: 0.7 | AH77: 0.66
AA78: 0.063936349 | AF78: 68 | AG78: 0.6 | AH78: 0.67
AA79: 0.04268902157 | AF79: 69 | AG79: 0.5 | AH79: 0.68
AA80: 0.02744655468 | AF80: 70 | AG80: 0.5 | AH80: 0.69
AA81: 0.01694204925 | AF81: 71 | AG81: 0.4 | AH81: 0.7
AA82: 0.01000586693 | AF82: 72 | AG82: 0.3 | AH82: 0.71
AA83: 0.005631434247 | AF83: 73 | AG83: 0.2 | AH83: 0.72
AA84: 0.003006304281 | AF84: 74 | AG84: 0.2 | AH84: 0.73
AA85: 0.001513957896 | AF85: 75 | AG85: 0.1 | AH85: 0.74
AA86: 0.0007145555377 | AF86: 76 | AG86: 0.1 | AH86: 0.75
AA87: 0.0003136295253 | AF87: 77 | AG87: 0.1 | AH87: 0.76
AA88: 0.0001268129727 | AF88: 78 | AG88: 0 | AH88: 0.77
AA89: 4.669414335e-05 | AF89: 79 | AG89: 0 | AH89: 0.78
AA90: 1.543418202e-05 | AF90: 80 | AG90: 0 | AH90: 0.79
AA91: 4.497369566e-06 | AF91: 81 | AG91: 0 | AH91: 0.8
AA92: 1.128634682e-06 | AF92: 82 | AG92: 0 | AH92: 0.81
AA93: 2.365440705e-07 | AF93: 83 | AG93: 0 | AH93: 0.82
AA94: 3.971307861e-08 | AF94: 84 | AG94: 0 | AH94: 0.83
AA95: 5.037632575e-09 | AF95: 85 | AG95: 0 | AH95: 0.84
AA96: 4.431885017e-10 | AF96: 86 | AG96: 0 | AH96: 0.85
AA97: 2.367698497e-11 | AF97: 87 | AG97: 0 | AH97: 0.86
AA98: =((AH107/$C$9)^($C$10*$C$9))*((((1-AH107)/(1-$C$9))^($C$10*(1-$C$9)))) -> 6.148476849e-13 | AF98: 88 | AG98: 0 | AH98: 0.87
AA99: 5.112802421e-15 | AF99: 89 | AG99: 0 | AH99: 0.88
AA100: 5.333931874e-18 | AF100: 90 | AG100: 0 | AH100: 0.89
AA101: 3.510106389e-23 | AF101: 91 | AG101: 0 | AH101: 0.9
AA102: 0 | AF102: 92 | AG102: 0 | AH102: 0.91
AF103: 93 | AG103: 0 | AH103: 0.92
AF104: 94 | AG104: 0 | AH104: 0.93
AF105: 95 | AG105: 0 | AH105: 0.94
AF106: 96 | AG106: 0 | AH106: 0.95
AF107: 97 | AG107: 0 | AH107: 0.96
AF108: 98 | AG108: 0 | AH108: 0.97
AF109: 99 | AG109: 0 | AH109: 0.98
AF110: 100 | AG110: 0 | AH110: 0.99
AF111: 101 | AG111: 0 | AH111: 1
